Cogmind - Beta 10.2 @@@ ROGUE MODE // 2020.12.30 @ 02:25:26 // Halloween2020/ForbiddenLore Player: Mynzra Result: Destroyed by S-27 Virus with Autogun Performance ------------- Evolutions (4) 2000 Regions Visited (7) 1400 Robots Destroyed (29) 145 Value Destroyed (904) 904 Prototype IDs (23) 460 Alien Tech Used (0) 0 Bonus (293) 293 TOTAL SCORE: 5202 Bonus ------- Aligned with FarCom 300 Friendly Fire -7 Cogmind --------- Core Integrity 0/850 Matter 57/300 Energy 81/100 System Corruption 4% Temperature Cool (0) Movement Core (50) Location -6/Factory Parts ------- > --- POWER (2) -------- (None) > --- PROPULSION (6) --- (None) > --- UTILITY (3) ------ (None) > --- WEAPON (4) ------- (None) > --- INVENTORY (4) ---- Aluminum Leg Shock Rifle Shock Rifle Lightning Gun Peak State ------------ > --- POWER ------------ Light Deuterium Engine Improved Deuterium Engine > --- PROPULSION ------- Aluminum Leg Improved Aluminum Leg Improved Aluminum Leg Improved Aluminum Leg Improved Carbon-fiber Leg > --- UTILITY ---------- Medium Storage Unit Medium Storage Unit Microactuators > --- WEAPON ----------- Lightning Gun Lightning Gun Autogun > --- INVENTORY -------- Ion Engine Aluminum Leg Aluminum Leg Carbon-fiber Leg Titanium Leg Titanium Leg Shock Rifle Spread Laser Assault Rifle Assault Rifle Gauss Cannon Rocket Launcher [Rating: 36] Favorites ----------- Power Ion Engine Engine Ion Engine Power Core Light Nuclear Core Propulsion Aluminum Leg Leg Aluminum Leg Utility Medium Storage Unit Device Trap Reconfigurator Storage Medium Storage Unit Processor Targeting Computer Weapon Assault Rifle Energy Gun Arc Projector Ballistic Gun Assault Rifle Ballistic Cannon Advanced Assault Cannon Launcher Rocket Launcher Build | -11 -10 -10 -10 -9 -8 -7 -6 ------- Run | Scr Mat Min Exi Min Mat Fac Fac Slots Evolved 8 | . . . . . 4 2 2 Power 1 | . . . . . . 1 . Propulsion 4 | . . . . . 2 1 1 Utility 1 | . . . . . 1 . . Weapon 2 | . . . . . 1 . 1 Parts Attached 56 | 6 7 2 3 2 8 27 1 Power 8 | 1 . . 1 . 1 5 . Engine 7 | 1 . . . . 1 5 . Core 1 | . . . 1 . . . . Reactor . | . . . . . . . . Propulsion 22 | 2 4 . . 1 3 11 1 Treads . | . . . . . . . . Leg 22 | 2 4 . . 1 3 11 1 Wheel . | . . . . . . . . Hover . | . . . . . . . . Flight . | . . . . . . . . Utility 7 | 1 2 . 2 . 1 1 . Device 2 | . . . 1 . . 1 . Storage 4 | 1 1 . 1 . 1 . . Processor 1 | . 1 . . . . . . Hackware . | . . . . . . . . Protection . | . . . . . . . . Artifact . | . . . . . . . . Weapon 19 | 2 1 2 . 1 3 10 . Energy Gun 8 | . 1 . . . 2 5 . Energy Cannon . | . . . . . . . . Ballistic Gun 5 | 2 . 1 . 1 . 1 . Ballistic Cannon 3 | . . . . . . 3 . Launcher 3 | . . 1 . . 1 1 . Special Weapon . | . . . . . . . . Impact Weapon . | . . . . . . . . Slashing Weapon . | . . . . . . . . Piercing Weapon . | . . . . . . . . Special Melee Weapon . | . . . . . . . . Unidentified Prototypes . | . . . . . . . . Parts Lost 20 | . 4 . . 3 . 3 10 Power 5 | . 1 . . 1 . 1 2 Propulsion 7 | . . . . 1 . . 6 Utility 1 | . . . . 1 . . . Weapon 7 | . 3 . . . . 2 2 Highest Loss Streak 8 | . 4 . . 3 . 1 8 Average Slot Usage (%) 82 | . 90 73 85 85 90 90 66 Engine 7 | . 14 . . . 9 14 10 Core 1 | . . . . 9 . . . Leg 31 | . 28 28 28 22 36 37 33 Device 2 | . . . 6 9 . . . Storage 14 | . 14 14 14 14 18 15 11 Processor 3 | . 7 14 7 . . . . Energy Gun 4 | . . . . . 9 10 5 Ballistic Gun 11 | . 24 14 14 19 11 7 . Ballistic Cannon 1 | . . . . . . . 5 Launcher 4 | . . 2 14 8 6 1 . Naked Turns 62 | . . . . . . . 62 Heaviest Build 46 | 12 12 10 20 20 29 46 42 Greatest Support 84 | 20 20 20 20 20 40 67 84 Greatest Overweight (x) 5 | . . . . 1 . 2 5 Average Overweight (x) . | . . . . . . . . Largest Inventory Capacity 12 | 6 6 6 8 8 12 12 12 Average Capacity 9 | 5 6 6 6 8 11 12 11 Most Carried 12 | . 6 6 7 8 8 12 11 Average Carried 7 | . 4 6 6 7 4 11 10 Final Capacity 12 | 6 6 6 8 8 12 12 4 Final Carried 12 | . 6 6 6 8 8 12 4 Class Distribution -------------------- 67% | Mutant 19% | Skirmisher 13% | Scavenger-Skirmisher Dominant Class ---------------- Mutant | -10/Materials Mutant | -10/Mines Mutant | -10/Exiles Mutant | -9/Mines Scavenger-Skirmisher | -8/Materials Skirmisher | -7/Factory Mutant | -6/Factory Resources | -11 -10 -10 -10 -9 -8 -7 -6 ----------- Run | Scr Mat Min Exi Min Mat Fac Fac Matter Collected 821 | 188 207 20 . 111 5 290 . Remotely . | . . . . . . . . Salvage Created 1005 | . 283 . . 144 31 547 . Parts 59 | . 22 . . 6 4 27 . Haulers Intercepted . | . . . . . . . . Recyclers Shooed . | . . . . . . . . Parts Field Recycled . | . . . . . . . . Retrieved Matter . | . . . . . . . . Parts Self-Destructed . | . . . . . . . . Prevented . | . . . . . . . . Kills | -11 -10 -10 -10 -9 -8 -7 -6 ------- Run | Scr Mat Min Exi Min Mat Fac Fac Combat Hostiles Destroyed 27 | . 7 . . 9 . 11 . Guns 14 | . 7 . . 2 . 5 . AOE 13 | . . . . 7 . 6 . Classes Destroyed 11 | . 1 . . 3 1 6 . Worker 1 | . . . . . . 1 . Builder 1 | . . . . . . 1 . Recycler 5 | . . . . 2 . 3 . Watcher 1 | . . . . . 1 . . Swarmer 6 | . . . . 3 . 3 . Grunt 11 | . 7 . . . . 4 . Brawler 1 | . . . . . . 1 . Duelist 1 | . . . . . . 1 . Hunter 1 | . . . . . . 1 . Programmer 1 | . . . . . . 1 . Assembled 6 | . . . . 6 . . . Best Kill Streak 8 | . 3 . . 5 1 8 . Combat Bots Only 5 | . 3 . . 5 . 5 . Max Kills in Single Turn 3 | . 1 . . 2 1 3 . Gunslinging . | . . . . . . . . Exploded 2 | . . . . 2 . 1 . Melee . | . . . . . . . . Uniques/NPCs Destroyed . | . . . . . . . . Combat | -11 -10 -10 -10 -9 -8 -7 -6 -------- Run | Scr Mat Min Exi Min Mat Fac Fac Damage Taken 3248 | . 583 1 . 532 32 674 1426 Core 1037 | . 74 . . 48 . 60 855 Absorbed by Shields . | . . . . . . . . Core Remaining (%) 85 | 100 . . . 51 100 91 . Volleys Fired 79 | . 32 . . 12 1 33 1 Largest 3 | . 2 . . 2 3 3 2 Hottest 158 | . 40 . . 53 103 158 103 Shots Fired 176 | . 53 . . 24 3 94 2 Gun 157 | . 53 . . 19 2 82 1 Cannon 4 | . . . . . . 3 1 Launcher 15 | . . . . 5 1 9 . Special . | . . . . . . . . Kinetic 109 | . 53 . . 19 1 35 1 Thermal . | . . . . . . . . Explosive 15 | . . . . 5 1 9 . Electromagnetic 52 | . . . . . 1 50 1 Robot Hit Streak 24 | . 24 . . 4 . 9 1 Robot Miss Streak 7 | . 1 . . 3 3 7 1 Penetration Max . | . . . . . . . . Secondary Targets . | . . . . . . . . Shots Hit Robots 109 | . 40 . . 14 . 54 1 Core Hits 66 | . 13 . . 15 5 32 1 Critical Hits 3 | . 1 . . 1 . 1 . Critical Kills 1 | . . . . . . 1 . Critical Parts Destroyed 2 | . 1 . . 1 . . . Melee Attacks . | . . . . . . . . Impact . | . . . . . . . . Slashing . | . . . . . . . . Piercing . | . . . . . . . . Sneak Attacks . | . . . . . . . . Combat Hostiles . | . . . . . . . . Follow-up Attacks . | . . . . . . . . Damage Inflicted 3331 | . 365 5 . 727 56 2127 51 Guns 1100 | . 365 . . 106 . 614 15 Cannons 58 | . . . . . . 27 31 Explosions 2150 | . . . . 612 56 1482 . Melee . | . . . . . . . . Ramming 23 | . . 5 . 9 . 4 5 Kinetic 778 | . 365 . . 106 . 276 31 Thermal . | . . . . . . . . Explosive 2150 | . . . . 612 56 1482 . Electromagnetic 380 | . . . . . . 365 15 Impact . | . . . . . . . . Slashing . | . . . . . . . . Piercing . | . . . . . . . . Highest Corruption 5 | . . . . 5 . 1 4 Average Corruption 2 | . . . . 5 . 1 2 Corruption Purged . | . . . . . . . . Effects 5 | . . . . 3 . . 2 Message Errors 1 | . . . . 1 . . . Energy Discharges 2 | . . . . . . . 2 Data Loss (minor) 2 | . . . . 2 . . . Overload Shots . | . . . . . . . . Overflow Damage 295 | . . . . 10 . 279 6 Projectiles 6 | . . . . . . . 6 Explosions 289 | . . . . 10 . 279 . Melee . | . . . . . . . . Knockbacks 2 | . . . . . . 1 1 Impact . | . . . . . . . . Kinetic 2 | . . . . . . 1 1 Secondary . | . . . . . . . . Self-Inflicted Damage 110 | . . 1 . 4 32 72 1 Shots 3 | . . . . . 1 2 . Rammed 3 | . . 1 . 1 . . 1 Targets Rammed 8 | . . 3 . 1 . 1 3 Kicked 5 | . . 2 . . . 1 2 Crushed . | . . . . . . . . Highest Temperature 452 | . 15 . . 4 24 452 12 Average Temperature 100 | . 6 . . 3 16 127 8 Received Heat Transfer 528 | . 321 . . . . 108 99 Effects 6 | . . . . . . 6 . Shutdowns 1 | . . . . . . 1 . Energy Bleed 2 | . . . . . . 2 . Interference 3 | . . . . . . 3 . Siege Activations . | . . . . . . . . Robots Corrupted . | . . . . . . . . Combat Hostiles . | . . . . . . . . Parts Fried 1 | . . . . . . 1 . Impact Corruptions . | . . . . . . . . Robots Melted . | . . . . . . . . Combat Hostiles . | . . . . . . . . Parts Melted . | . . . . . . . . Heat Transferred . | . . . . . . . . Parts Sabotaged . | . . . . . . . . Parts Stolen . | . . . . . . . . Parts Stripped . | . . . . . . . . Power Chain Reactions . | . . . . . . . . Missiles Intercepted . | . . . . . . . . Alert | -11 -10 -10 -10 -9 -8 -7 -6 ------- Run | Scr Mat Min Exi Min Mat Fac Fac Peak Influence 312 | . 205 67 . 95 16 312 139 Initial 139 | . . 67 . . . 7 139 Average 111 | . 108 67 . 49 1 204 113 Maximum Alert Level 1 | . 1 . . . . 1 . Low Security (%) 82 | 100 94 100 . 100 100 43 100 Level 1 17 | . 5 . . . . 56 . Level 2 . | . . . . . . . . Level 3 . | . . . . . . . . Level 4 . | . . . . . . . . Level 5 . | . . . . . . . . High Security . | . . . . . . . . Max Security . | . . . . . . . . Squads Dispatched 12 | . 4 . . . . 7 1 Investigation 3 | . 2 . . . . 1 . Extermination 2 | . . . . . . 1 1 Reinforcement 4 | . 2 . . . . 2 . Assault . | . . . . . . . . Garrison 3 | . . . . . . 3 . Intercept . | . . . . . . . . Construction Impeded . | . . . . . . . . Haulers Reinforced . | . . . . . . . . Stealth | -11 -10 -10 -10 -9 -8 -7 -6 --------- Run | Scr Mat Min Exi Min Mat Fac Fac Distress Signals 2 | . 2 . . . . . . Communications Jammed . | . . . . . . . . Distress Signals . | . . . . . . . . Times Spotted 52 | . 15 . . 9 . 15 13 Peak Tracking Total 11 | . 5 . . 5 . 5 11 Tactical Retreats 2 | . . . . . . . 2 Traps | -11 -10 -10 -10 -9 -8 -7 -6 ------- Run | Scr Mat Min Exi Min Mat Fac Fac Traps Triggered 7 | . 1 . . . . 6 . Indirectly . | . . . . . . . . Trap Hack Attempts . | . . . . . . . . Triggered . | . . . . . . . . Disarmed . | . . . . . . . . Reprogrammed . | . . . . . . . . Reused . | . . . . . . . . Traps Extracted . | . . . . . . . . Installed . | . . . . . . . . Triggered . | . . . . . . . . Machines | -11 -10 -10 -10 -9 -8 -7 -6 ---------- Run | Scr Mat Min Exi Min Mat Fac Fac Machines Disabled 8 | . . . . . . 8 . Max in Single Turn 4 | . . . . . . 4 . Machines Sabotaged . | . . . . . . . . Garrisons Compromised . | . . . . . . . . Overloaded Fab Kills . | . . . . . . . . Fab Network Shutdowns . | . . . . . . . . Hacking | -11 -10 -10 -10 -9 -8 -7 -6 --------- Run | Scr Mat Min Exi Min Mat Fac Fac Machines Accessed 7 | . . . 3 . 1 2 1 Terminals 4 | . . . . . 1 2 1 Fabricators . | . . . . . . . . Repair Stations . | . . . . . . . . Recycling Units . | . . . . . . . . Scanalyzers . | . . . . . . . . Garrison Access . | . . . . . . . . Total Hacks 26 | . . . 18 . 2 5 1 Successful 18 | . . . 18 . . . . Failed 8 | . . . . . 2 5 1 Catastrophic 3 | . . . . . 1 1 1 Database Lockouts . | . . . . . . . . Manual 8 | . . . 1 . 2 4 1 Terminals 8 | . . . . . 2 5 1 Fabricators . | . . . . . . . . Repair Stations . | . . . . . . . . Recycling Units . | . . . . . . . . Scanalyzers . | . . . . . . . . Garrison Access . | . . . . . . . . Terminal Hacks 18 | . . . 18 . . . . Record 17 | . . . 17 . . . . EX-Prototype ID Bank 1 | . . . 1 . . . . Fabricator Hacks . | . . . . . . . . Repair Station Hacks . | . . . . . . . . Recycling Unit Hacks . | . . . . . . . . Scanalyzer . | . . . . . . . . Garrison Access Hacks . | . . . . . . . . Unauthorized Hacks . | . . . . . . . . Terminals . | . . . . . . . . Fabricators . | . . . . . . . . Repair Stations . | . . . . . . . . Recycling Units . | . . . . . . . . Scanalyzers . | . . . . . . . . Garrison Access . | . . . . . . . . Data Cores Recovered . | . . . . . . . . Used . | . . . . . . . . Hacking Detections 4 | . . . . . 1 2 1 Full Trace Events . | . . . . . . . . Feedback Events . | . . . . . . . . Feedback Blocked . | . . . . . . . . Robot Schematics Acquired . | . . . . . . . . Robots Built . | . . . . . . . . Matter . | . . . . . . . . Time . | . . . . . . . . Total Robot Build Rating . | . . . . . . . . Part Schematics Acquired . | . . . . . . . . Parts Built . | . . . . . . . . Matter . | . . . . . . . . Time . | . . . . . . . . Total Part Build Rating . | . . . . . . . . Parts Repaired . | . . . . . . . . Time . | . . . . . . . . Parts Recycled . | . . . . . . . . Recycled Matter . | . . . . . . . . Retrieved Matter . | . . . . . . . . Retrieved Components . | . . . . . . . . Parts Scanalyzed . | . . . . . . . . Part Schematics Acquired . | . . . . . . . . Parts Damaged . | . . . . . . . . Bothacking | -11 -10 -10 -10 -9 -8 -7 -6 ------------ Run | Scr Mat Min Exi Min Mat Fac Fac Used RIF Installer . | . . . . . . . . Robots Hacked . | . . . . . . . . Non-combat . | . . . . . . . . Combat . | . . . . . . . . Robot Hacks Applied . | . . . . . . . . Relay Couplers Released . | . . . . . . . . Robots Rewired . | . . . . . . . . Allies Hacked . | . . . . . . . . Hacks Repelled . | . . . . . . . . Allies | -11 -10 -10 -10 -9 -8 -7 -6 -------- Run | Scr Mat Min Exi Min Mat Fac Fac Total Allies 1 | . . . . 1 . . . Largest Group 1 | . . . . 1 1 1 . Highest-Rated Group 31 | . . . . 31 31 31 . Highest-Rated Ally 31 | . . . . 31 31 31 . Total Orders . | . . . . . . . . Ally Attacks . | . . . . . . . . Total Damage . | . . . . . . . . Kills . | . . . . . . . . Allies Corrupted . | . . . . . . . . Allies Melted . | . . . . . . . . Intel | -11 -10 -10 -10 -9 -8 -7 -6 ------- Run | Scr Mat Min Exi Min Mat Fac Fac Robot Analysis Total . | . . . . . . . . Derelict Logs Recovered 2 | . . 1 . 1 . . . Drone Launches . | . . . . . . . . Drone Recoveries . | . . . . . . . . Exploration | -11 -10 -10 -10 -9 -8 -7 -6 ------------- Run | Scr Mat Min Exi Min Mat Fac Fac Turns Passed 3066 | 64 297 374 383 423 224 796 505 Spaces Moved 2289 | 48 152 307 306 296 173 528 479 Core 127 | 3 . . . . . . 124 Treads . | . . . . . . . . Legs 2162 | 45 152 307 306 296 173 528 355 Wheels . | . . . . . . . . Hover . | . . . . . . . . Flight . | . . . . . . . . Fastest Speed 50 | 50 120 120 120 120 120 120 50 Average Speed 117 | 115 120 120 120 129 120 120 103 Slowest Speed 300 | 120 120 120 120 150 120 180 300 Overloaded Moves . | . . . . . . . . Propulsion Burnouts . | . . . . . . . . Robots Hopped . | . . . . . . . . Cave-ins Triggered 1 | . . . . 1 . . . Exploration Rate (%) 36 | 5 29 77 63 69 21 17 10 Regions Visited 7 Branch Regions 3 Pre-discovered Areas 1 | . . 1 . . . . . Known Exits Taken 1 | . . . . . 1 . . Unknown Exits Taken 6 | 1 1 1 1 1 . 1 . Scrap Searched 2 | . . 1 . 1 . . . Spaces Dug . | . . . . . . . . Terrain Destroyed 98 | . . . . 45 8 45 . Melee . | . . . . . . . . Projectile 1 | . . . . . . 1 . AOE 97 | . . . . 45 8 44 . Terrain Rammed . | . . . . . . . . Walls Destroyed . | . . . . . . . . Machines Disabled . | . . . . . . . . Actions | -11 -10 -10 -10 -9 -8 -7 -6 --------- Run | Scr Mat Min Exi Min Mat Fac Fac Total 2507 | 53 220 311 324 312 186 615 486 Wait 36 | . 21 . 7 . . 8 . Move 2282 | 47 151 306 305 295 172 527 479 Hop . | . . . . . . . . Pick Up 26 | . 5 . 5 2 5 9 . Fast Attach 23 | 6 2 2 . 1 . 12 . Attach 12 | . . . 1 . 6 4 1 Detach . | . . . . . . . . Swap 21 | . 5 . 2 1 2 11 . Drop 18 | . 4 . 4 . . 8 2 Fire 79 | . 32 . . 12 1 33 1 Melee . | . . . . . . . . Ram 1 | . . . . . . . 1 Kick 7 | . . 3 . 1 . 1 2 Crush . | . . . . . . . . Escape Stasis 2 | . . . . . . 2 . Rewire . | . . . . . . . . Trap . | . . . . . . . . Miscellaneous . | . . . . . . . . Route ------- -11/Scrapyard -10/Materials -10/Mines (discovered 2 exits: [*Mat] / *Exi) -10/Exiles -9/Mines -8/Materials (discovered 2 exits: *Fac x2) -7/Factory -6/Factory History --------- Turn | Location | Event 6 | -11/Scrapyard | Discovered new exit (range 16) 65 | -11/Scrapyard | Entered Materials 269 | -10/Materials | Discovered new exit (range 16) 307 | -10/Materials | Build established: Mutant 362 | -10/Materials | Entered Mines 362 | -10/Mines | Discovered new exit (range 10) 391 | -10/Mines | Lost 4 parts (1p3w) 665 | -10/Mines | Received a Rocket Launcher from a helpful Derelict 731 | -10/Mines | Deemed a non-threat by the Exiles lab entrance 731 | -10/Mines | Discovered new exit (range 5) 736 | -10/Mines | Entered Exiles 766 | -10/Exiles | Met 8R-AWN 787 | -10/Exiles | Met EX-HEX 822 | -10/Exiles | Met EX-BIN 838 | -10/Exiles | Aligned with FarCom system 840 | -10/Exiles | Given EX-Vault access code 871 | -10/Exiles | Opened EX-Vault 876 | -10/Exiles | Found Prototype Device 932 | -10/Exiles | Identified Trap Reconfigurator 940 | -10/Exiles | Found PSU Rigger 975 | -10/Exiles | Warned to stay clear of 0b10 Research branches 1007 | -10/Exiles | Met EX-DEC 1107 | -10/Exiles | Discovered new exit (range 10) 1119 | -10/Exiles | Left Exiles lab with Trap Reconfigurator 1119 | -10/Exiles | Entered Mines 1298 | -9/Mines | Learned location of 1 exit from Materials 1338 | -9/Mines | Assembled infested the area 1408 | -9/Mines | Crushed by falling debris 1439 | -9/Mines | Lost 3 parts (1p1n1u) 1518 | -9/Mines | Discovered new exit (range 8) 1523 | -9/Mines | Received a Mining Laser from a helpful Derelict 1542 | -9/Mines | Entered Materials 1542 | -8/Materials | Accompanied by 1 ally 1542 | -8/Materials | Evolved 4 slots: Propulsion x2, Utility x1, Weapon x1 1543 | -8/Materials | Identified exit to Factory 1759 | -8/Materials | Discovered exit to Factory (range 4) 1766 | -8/Materials | Entered Factory 1766 | -7/Factory | Accompanied by 1 ally 1766 | -7/Factory | Evolved 2 slots: Power x1, Propulsion x1 1829 | -7/Factory | Build established: Scavenger-Skirmisher 1897 | -7/Factory | Garrison activated, responded to threat 2526 | -7/Factory | Build established: Skirmisher 2538 | -7/Factory | Discovered new exit (range 15) 2562 | -7/Factory | Entered another Factory area 2562 | -6/Factory | Evolved 2 slots: Propulsion x1, Weapon x1 2849 | -6/Factory | Build established: Mutant 3021 | -6/Factory | Core integrity fell below 50% 3032 | -6/Factory | Lost 8 parts (1p5n2w) 3034 | -6/Factory | Core integrity fell below 20% 3067 | -6/Factory | Destroyed by S-27 Virus with Autogun Last Messages --------------- 02918_ Ion Engine destroyed. 02918_ Destroyed Wheel. 02918_ K-01 Serf knocked back. 02936_ Kicked K-01 Serf out of the way. 02941_ System corrupted: Energy discharge (-60). 02952_ Imp. Aluminum Leg destroyed. 02974_ Assembly Bed disabled. 02986_ Aluminum Leg destroyed. 02986_ Imp. Aluminum Leg destroyed. 02987_ Imp. Carbon-fiber Leg destroyed. 02988_ Imp. Aluminum Leg destroyed. 02988_ Arc Projector destroyed. 02995_ Imp. Deuterium Engine destroyed. 02995_ Adv. Assault Cannon destroyed. 02998_ P-60 Hacker resets S-27 Virus, system corruption cleaned. 03001_ Titanium Leg destroyed. 03004_ Dropped Med. Storage Unit. 03005_ R-10 Processor collects Rocket Launcher. 03031_ Slammed into A-15 Conveyor. 03060_ System corrupted: Energy discharge (-38). Map ----- +----------------------------------------------------+ | ???????????????????????????????????????? ????? | | ???????????????????????????????????????? ????? | | ???????????????????????????????????????# ????? | | ???????????????????????????????????????# ##### | | ???????????????????????????????????????# | | ???????????????????????????????????????# | | ???????????????????????????????????????# | | ???????????????????????????????????????# """ """ | | ???????????????????????????????????????# """ """ | | ???????????????????????????????????????# """ """ | | ????????????????????????????????######## | | ????????????????????????????????# """ """ | | ????????????????????????????????# """ """ | | ????????????????????????????????# """ """ | | ????????????????????????######### p | | ???????????????????????? # "T" | | ??????????????????????? # ###########+ | | ???????????????????????"" """" # #?? ????? | | ??????????????????w??"""" """" # # """ ???? | | ?????????????????????"""" """" # + "G ? | | ???????????????????# """" """" /s # """ ?? | | ???????????????????# """" """" # # ? """ | | ???????????????????# """" """" s #? ! """ | | ???????????????????# """" """"k #######? """ | | ???????????????????# s!#???????? | | ???????????????????# @ ! #????????? """ ??? | | ???????????????????# #????????? ""? "?? | | ???????????????????##############??????????""????? | | ?????????????????????????????????????????????????? | | ?????????????????????????????????????????????????? | | ?????????????????????????????????????????????????? | | ?????????????????????????????????????????????????? | | ?????????????????????????????????????????????????? | | ?????????????????????????????????????????????????? | | ?????????????????????????????????????????????????? | | ?????????????????????????????????????????????????? | | ???????????????w?????????????????????????????????? | | ?????????????????????????????????????????????????? | | ?????????????????????????????????????????????????? | | ?????????????????????????????????????????????????? | | ?????????????????????????????????????????????????? | | ?????????????????????????????????????????????????? | | ?????????????????????????????????????????????????? | | ?????????????????????????????????????????????????? | | ?????????????????????????????????????????????????? | | ?????????????????????????????????????????????????? | | ?????????????????????????????????????????????????? | | ?????????????????????????????????????????????????? | | ?????????????????????????????????????????????????? | | ?????????????????????????????????????????????????? | +----------------------------------------------------+ Best States ------------- Heat Dissipation 37 Energy Generation 25 Energy Capacity 440 Matter Stores 300 Matter Capacity 300 Sight Range 16 Terrain Scan Density 10 Evasion (%) 50 Targeting Accuracy 5 Item Schematics ----------------- None Robot Schematics ------------------ None Fabricated ------------ Nothing Alien Tech Used ----------------- None Achievements -------------- None Challenges ------------ None Game ------ Seed NuclearZionitePurifier Manual? 0 Play Time 00:30:30 Cumulative 7.2 hours Start 2020.12.30 @ 01:58:29 End 2020.12.30 @ 02:25:26 Sessions 1 Manual Loads 0 Difficulty Rogue Special Mode Halloween2020/ForbiddenLore Game No. 11 Rogue 4 Adventurer 4 Explorer 3 Win Type - Total 0 Types 0/0/0/0/0/0/0/0/0 Lore% 16 Gallery% 13 Achievement% 34 Wizard Run 0 Options --------- ASCII 0 Keyboard 0 Movement Mouse Keybinds 0 Fullscreen 2 Font 18/SmallcapsGlow Map View 76x50 Tactical HUD 1 Map Filters NONE Filters NONE Steam 1 RUN: 27f43c7c-dd4a-4df2-8c50-80064832bbc5